Cogmind - Beta 13 @@@ ROGUE MODE // 2024.04.08 @ 21:57:18 Player: BVrutally Odd Result: Destroyed by G-67 Veteran with Plasma Rifle Performance ------------- Evolutions (7) 3500 Regions Visited (15) 3000 Robots Destroyed (123) 615 Value Destroyed (3886) 3886 Prototype IDs (42) 840 Alien Tech Used (0) 0 Bonus (1650) 1650 TOTAL SCORE: 13491 Bonus ------- High Alert Combat Kills 12 Follower Combat Kills 538 Entered DSFs 500 Aligned with FarCom 300 Met Data Miner 300 Cogmind --------- Core Integrity 0/1300 Matter 146/300 Energy 375/390 System Corruption 3% Temperature Cool (24) Movement Flying (31) Location -3/Research Parts ------- > --- POWER (2) -------- Particle Reactor Micro Antimatter Reactor > --- PROPULSION (4) --- Impulse Thruster Impulse Thruster Impulse Thruster Impulse Thruster > --- UTILITY (13) ----- Advanced Signal Interpreter Hacking Suite Advanced System Shield Advanced System Shield > --- WEAPON (2) ------- (None) > --- INVENTORY (5) ---- Nuclear Pulse Array Impulse Thruster Heavy Rocket Launcher Hellfire Missile Launcher Peak State ------------ > --- POWER ------------ Neutrino Core > --- PROPULSION ------- Impulse Thruster Impulse Thruster Array Experimental Q-thruster > --- UTILITY ---------- Enhanced Optical Array Advanced Signal Interpreter Melee Analysis Suite Hacking Suite Hacking Suite Improved Hacking Suite Advanced Hacking Suite System Shield System Shield Advanced System Shield Advanced System Shield > --- WEAPON ----------- Enhanced Force Lance > --- INVENTORY -------- Improved Phase Shifter Heavy Rocket Launcher Hellfire Missile Launcher [Rating: 97] Favorites ----------- Power Light Ion Engine Engine Light Ion Engine Power Core Neutrino Core Reactor Micro Antimatter Reactor Propulsion Nuclear Pulse Array Treads Light Treads Leg Flexi-carbon Leg Wheel Compact Wheel Hover Unit Improved Hover Unit Flight Unit Nuclear Pulse Array Utility Melee Analysis Suite Device Improved Focal Shield Storage Large Storage Unit Processor Melee Analysis Suite Hackware System Shield Protection Reflective Plating Weapon Assault Rifle Energy Gun Beam Rifle Energy Cannon Guided Plasma Cannon Ballistic Gun Assault Rifle Launcher Hellfire Missile Launcher Special Weapon Welding Torch Impact Weapon Powered Hammer Slashing Weapon Katana Piercing Weapon Enhanced Force Lance Build | -11 -10 -10 -10 -9 -8 -7 -7 -7 -7 -6 -6 -6 -5 -4 -3 ------- Run | Yrd Mat Min Exi Min Mat Fac Low Low Dat Pro Fac DSF Fac Fac Res Slots Evolved 14 | . . . . . 4 2 . . . . 2 . 2 2 2 Power 1 | . . . . . . . . . . . . . . . 1 Propulsion 2 | . . . . . 1 1 . . . . . . . . . Utility 11 | . . . . . 3 1 . . . . 2 . 2 2 1 Weapon . | . . . . . . . . . . . . . . . . Parts Attached 159 | 6 1 1 . 4 37 15 8 9 1 7 7 5 19 14 25 Power 17 | 1 . . . . 3 4 1 1 . . . . 3 1 3 Engine 8 | 1 . . . . . 4 1 1 . . . . 1 . . Core 7 | . . . . . 3 . . . . . . . 2 1 1 Reactor 2 | . . . . . . . . . . . . . . . 2 Propulsion 33 | 2 . 1 . . 10 2 . 1 . . 3 2 1 2 9 Treads 8 | 2 . 1 . . 5 . . . . . . . . . . Leg 3 | . . . . . . . . . . . 3 . . . . Wheel 2 | . . . . . 2 . . . . . . . . . . Hover 7 | . . . . . 3 2 . 1 . . . . . . 1 Flight 13 | . . . . . . . . . . . . 2 1 2 8 Utility 59 | 1 1 . . 1 4 3 3 6 1 4 4 3 12 6 10 Device 27 | . . . . 1 1 1 2 3 1 3 3 . 7 2 3 Storage 3 | 1 1 . . . . . 1 . . . . . . . . Processor 11 | . . . . . 2 2 . 3 . . . . 2 1 1 Hackware 16 | . . . . . 1 . . . . . 1 2 3 3 6 Protection 2 | . . . . . . . . . . 1 . 1 . . . Artifact . | . . . . . . . . . . . . . . . . Weapon 50 | 2 . . . 3 20 6 4 1 . 3 . . 3 5 3 Energy Gun 5 | . . . . . 5 . . . . . . . . . . Energy Cannon 1 | . . . . . 1 . . . . . . . . . . Ballistic Gun 10 | 2 . . . 2 5 1 . . . . . . . . . Ballistic Cannon . | . . . . . . . . . . . . . . . . Launcher 11 | . . . . . 2 1 2 . . 2 . . 1 2 1 Special Weapon 1 | . . . . . . . . . . . . . . 1 . Impact Weapon 11 | . . . . 1 7 1 . . . . . . 1 1 . Slashing Weapon 10 | . . . . . . 3 2 1 . 1 . . 1 1 1 Piercing Weapon 1 | . . . . . . . . . . . . . . . 1 Special Melee Weapon . | . . . . . . . . . . . . . . . . Unidentified Prototypes 8 | . . . . 1 1 1 . 1 . . . . 1 2 1 Corrupted Parts 2 | . . . . . . . . . . . . . 2 . . System Corruption 11 | . . . . . . . . . . . . . 11 . . Parts Lost 68 | . . . . 1 14 3 6 . . 8 . 2 4 7 23 Power 9 | . . . . 1 2 . 1 . . 1 . 1 1 . 2 Propulsion 20 | . . . . . 6 2 2 . . 2 . . 1 2 5 Utility 25 | . . . . . 3 . 1 . . 3 . . 2 3 13 Weapon 14 | . . . . . 3 1 2 . . 2 . 1 . 2 3 Highest Loss Streak 12 | . . . . 1 7 3 6 . . 6 . 1 1 2 12 To Critical Strikes 2 | . . . . . . . . . . . . . . . 2 Average Slot Usage (%) 71 | . 87 100 92 97 76 66 75 66 69 48 47 45 74 65 57 Engine 3 | . 14 14 14 12 . 3 4 5 7 3 4 3 1 . . Core 1 | . . . . . 3 . . . . . . . 3 2 1 Treads 7 | . 28 28 28 28 22 . . . . . . . . . . Hover 3 | . . . . . . 26 17 15 15 7 . . . . 1 Flight 4 | . . . . . . . . . . . . 3 10 7 7 Device 6 | . . . . 13 14 2 11 6 7 4 . . 4 4 1 Storage 4 | . 16 28 20 14 9 7 4 . . . . . . . . Processor 12 | . . . . . 5 9 15 16 15 15 13 13 20 21 11 Hackware 12 | . . . . . . 7 7 7 7 3 5 9 21 24 27 Energy Gun 1 | . . . . . 9 . . . . . . . . . . Ballistic Gun 4 | . 28 28 28 27 4 1 . . . . . . . . . Impact Weapon 1 | . . . . . 3 2 . . . . . . 4 1 . Slashing Weapon 3 | . . . . . . 4 11 13 15 10 6 . . 3 1 Naked Turns . | . . . . . . . . . . . . . . . . Heaviest Build 43 | 12 32 32 32 31 43 31 22 17 17 17 13 4 23 18 26 Greatest Support 62 | 40 40 42 42 42 62 30 22 16 16 16 35 26 26 25 29 Greatest Overweight (x) 7 | 1 . . . . 2 7 . 1 1 2 4 . 1 . 2 Average Overweight (x) . | . . . . . . . . . . . . . . . . Largest Inventory Capacity 15 | 8 15 15 15 15 15 15 15 5 5 5 5 5 5 5 5 Average Capacity 8 | 7 8 15 15 15 15 15 7 5 5 5 5 5 5 5 5 Most Carried 15 | 6 8 13 15 15 15 13 14 5 5 5 5 5 5 5 5 Average Carried 7 | 4 6 11 13 14 14 11 6 2 2 3 3 4 3 4 3 Final Capacity 15 | 8 15 15 15 15 15 15 5 5 5 5 5 5 5 5 5 Final Carried 15 | 6 8 13 15 15 12 13 5 2 4 3 5 5 4 4 5 Class Distribution -------------------- 43% | Mutant 18% | Hacker-Sprinter 16% | Hacker-Mutant 10% | Gladiator 8% | Wizard-Sprinter Dominant Class ---------------- Mutant | -10/Materials Mutant | -10/Mines Mutant | -10/Exiles Mutant | -9/Mines Mutant | -8/Materials Mutant | -7/Factory Gladiator | -7/Lower Caves Gladiator | -7/Lower Caves Gladiator | -7/Data Miner Mutant | -6/Proximity Caves Mutant | -6/Factory Mutant | -6/DSF Hacker-Mutant | -5/Factory Hacker-Sprinter | -4/Factory Wizard-Sprinter | -3/Research Resources | -11 -10 -10 -10 -9 -8 -7 -7 -7 -7 -6 -6 -6 -5 -4 -3 ----------- Run | Yrd Mat Min Exi Min Mat Fac Low Low Dat Pro Fac DSF Fac Fac Res Matter Collected 4275 | 278 30 80 . 104 525 174 89 724 . 602 289 . 987 222 171 Remotely . | . . . . . . . . . . . . . . . . Salvage Created 5462 | 51 89 . . 113 899 184 31 202 . 364 289 . 1447 608 1185 Parts 234 | 2 9 . . 6 51 12 4 11 . 11 6 . 35 27 60 Haulers Intercepted 8 | . 1 . . . 1 . . . . . . . 3 . 3 Recyclers Shooed 1 | . . . . . . . . . . . 1 . . . . Parts Field Recycled . | . . . . . . . . . . . . . . . . Retrieved Matter . | . . . . . . . . . . . . . . . . Parts Self-Destructed 23 | . . . . . . . 4 8 . 11 . . . . . Prevented 9 | . . . . . . . . 4 . 5 . . . . . Kills | -11 -10 -10 -10 -9 -8 -7 -7 -7 -7 -6 -6 -6 -5 -4 -3 ------- Run | Yrd Mat Min Exi Min Mat Fac Low Low Dat Pro Fac DSF Fac Fac Res Combat Hostiles Destroyed 67 | . 3 1 . 2 22 4 3 2 . 4 . . 7 8 11 Melee 22 | . . . . . . 1 . 2 . 2 . . 2 5 10 Guns 21 | . 3 1 . 1 16 . . . . . . . . . . AOE 19 | . . . . . 5 3 3 . . 2 . . 4 1 1 Classes Destroyed 16 | 1 2 1 . 3 5 . 1 1 . . . . 1 . 1 Worker 5 | . . . . 1 . . . . . . . . 1 1 2 Builder 17 | . . . . . 4 1 . . . . . . 10 2 . Tunneler 1 | . . . . . . . . . . . . . 1 . . Hauler 8 | . 1 . . . 1 . . . . . . . 3 . 3 Recycler 9 | 1 . . . . . 1 . . . . 2 . 5 . . Operator 7 | . . . . . 1 . . . . . . . 3 1 2 Watcher 10 | . . . . . 1 1 . . . . . . 3 3 2 Swarmer 25 | . 3 . . . 7 4 2 1 . 4 . . 4 . . Grunt 19 | . . . . 1 11 . . . . . . . . 2 5 Duelist 1 | . . . . 1 . . . . . . . . . . . Sentry 3 | . . . . . 2 . . . . . . . . . 1 Specialist 2 | . . . . . 2 . . . . . . . . . . Hunter 2 | . . . . . . . . . . . . . . . 2 Programmer 14 | . . . . . . . 1 1 . . . . 3 6 3 Decomposer 2 | . . . . . . . 1 1 . . . . . . . Samaritan 3 | . . . . . . . . 1 . 2 . . . . . Assembled 1 | . . 1 . . . . . . . . . . . . . Best Kill Streak 8 | 1 2 1 . 2 8 5 3 1 . 3 1 . 5 3 7 Combat Bots Only 6 | . 2 1 . 2 6 4 3 1 . 3 . . 4 3 6 Max Kills in Single Turn 3 | 1 1 1 . 1 3 3 2 1 . 1 1 . 3 1 1 Gunslinging . | . . . . . . . . . . . . . . . . Exploded 3 | . . . . . 2 3 2 . . 1 . . 3 1 1 Melee 1 | . . . . . . 1 . 1 . 1 . . 1 1 1 Uniques/NPCs Destroyed . | . . . . . . . . . . . . . . . . Combat | -11 -10 -10 -10 -9 -8 -7 -7 -7 -7 -6 -6 -6 -5 -4 -3 -------- Run | Yrd Mat Min Exi Min Mat Fac Low Low Dat Pro Fac DSF Fac Fac Res Hostile Shots Fired 598 | . 18 1 . 24 159 10 34 3 . 43 . 15 46 68 177 Missed 186 | . 4 . . 5 30 2 9 1 . 16 . 10 24 27 58 Damage Taken 7899 | . 109 17 . 474 1954 145 548 30 . 577 . 188 529 842 2486 Core 3127 | . 19 . . 124 379 43 177 17 . 341 . 142 87 493 1305 Absorbed by Shields . | . . . . . . . . . . . . . . . . Redirected to Shielding 20 | . . . . . . . . . . 20 . . . . . Ignored by Resistances 16 | . . . . . . . . . . . . . 16 . . Core Remaining (%) 60 | 100 . . . 42 31 . . . . 17 . 83 91 57 . Volleys Fired 115 | 3 14 1 . 12 62 8 6 . . 3 . . 3 1 2 Largest 2 | 2 2 2 . 2 2 1 1 . . 1 . . 1 1 1 Hottest 128 | 40 40 40 . 40 128 36 39 . . 33 . . 39 60 60 Shots Fired 199 | 6 28 2 . 23 117 8 6 . . 3 . . 3 1 2 Gun 178 | 6 28 2 . 23 112 7 . . . . . . . . . Cannon 2 | . . . . . 2 . . . . . . . . . . Launcher 19 | . . . . . 3 1 6 . . 3 . . 3 1 2 Special . | . . . . . . . . . . . . . . . . Kinetic 109 | 6 28 2 . 23 43 7 . . . . . . . . . Thermal 71 | . . . . . 71 . . . . . . . . . . Explosive 19 | . . . . . 3 1 6 . . 3 . . 3 1 2 Electromagnetic . | . . . . . . . . . . . . . . . . Robot Hit Streak 15 | 3 7 1 . 5 15 2 2 . . 1 . . . . . Robot Miss Streak 6 | 1 6 1 . 2 4 2 1 . . 1 . . . . . Penetration Max . | . . . . . . . . . . . . . . . . Secondary Targets 2 | . . . . 1 1 . . . . . . . . . . Max Gunslinging Chain 1 | . . . . 1 1 . . . . . . . . . . Shots Hit Robots 316 | 4 16 1 . 17 91 10 2 10 . 11 6 . 49 44 55 Core Hits 147 | 2 4 1 . 4 46 8 11 4 . 10 1 . 15 14 27 Critical Kills 2 | . . . . . . . . . . . . . 2 . . Critical Parts Destroyed 12 | . . . . 1 . . . . . . . . 5 6 . Critical Strikes 28 | . . . . 1 2 . . . . . . . 7 11 7 Burn 2 | . . . . . 2 . . . . . . . . . . Smash 14 | . . . . 1 . . . . . . . . 7 6 . Sever 7 | . . . . . . . . . . . . . . 5 2 Impale 5 | . . . . . . . . . . . . . . . 5 Melee Attacks 295 | . . . . 2 21 13 2 13 . 10 13 . 75 69 77 Impact 141 | . . . . 2 21 5 . . . . . . 73 40 . Slashing 111 | . . . . . . 8 2 13 . 10 13 . 2 29 34 Piercing 43 | . . . . . . . . . . . . . . . 43 Sneak Attacks 43 | . . . . . 1 2 1 4 . 2 2 . 21 3 7 Combat Hostiles 2 | . . . . . . . . 1 . . . . . . 1 Follow-up Attacks 1 | . . . . . . . . 1 . . . . . . . Damage Inflicted 14346 | 47 201 13 . 287 2214 576 466 499 . 860 277 . 3534 2325 3047 Guns 1755 | 47 201 13 . 205 1216 73 . . . . . . . . . Cannons 78 | . . . . . 78 . . . . . . . . . . Explosions 2022 | . . . . . 466 242 395 . . 353 . . 302 91 173 Melee 10476 | . . . . 82 439 261 71 499 . 507 277 . 3232 2234 2874 Ramming 15 | . . . . . 15 . . . . . . . . . . Kinetic 1085 | 47 201 13 . 205 546 73 . . . . . . . . . Thermal 844 | . . . . . 748 96 . . . . . . . . . Explosive 1926 | . . . . . 466 146 395 . . 353 . . 302 91 173 Electromagnetic . | . . . . . . . . . . . . . . . . Impact 5170 | . . . . 82 439 . . . . . . . 3197 1452 . Slashing 3879 | . . . . . . 261 71 499 . 507 277 . 35 782 1447 Piercing 1427 | . . . . . . . . . . . . . . . 1427 Highest Corruption 16 | . . . . . 2 2 2 2 2 3 1 1 16 10 3 Average Corruption 3 | . . . . . 2 2 2 2 2 2 1 1 5 7 2 Corruption Purged . | . . . . . . . . . . . . . . . . Corruption Blocked 3 | . . . . . . . . . . . . . 3 . . Effects 107 | . . . . . 7 4 6 7 1 9 . . 27 36 10 Message Errors 20 | . . . . . 1 2 . 3 . . . . 5 7 2 Matter Fused 28 | . . . . . 1 1 . 2 . 4 . . 7 10 3 Heat Flow Errors 12 | . . . . . 2 . . . . 2 . . 2 4 2 Energy Discharges 14 | . . . . . 2 1 . . 1 1 . . 1 6 2 Parts Fused 3 | . . . . . . . . . . . . . 1 2 . Data Loss (minor) 18 | . . . . . . . 3 1 . 1 . . 8 5 . Data Loss (major) 6 | . . . . . 1 . 3 . . 1 . . . . 1 Alerts 3 | . . . . . . . . 1 . . . . . 2 . Misdirections 3 | . . . . . . . . . . . . . 3 . . Overload Shots . | . . . . . . . . . . . . . . . . Overflow Damage 2955 | . . . . 45 48 52 13 96 . 228 123 . 1573 535 242 Projectiles 36 | . . . . . . . . . . . . . 36 . . Explosions 24 | . . . . . . 7 13 . . 4 . . . . . Melee 2895 | . . . . 45 48 45 . 96 . 224 123 . 1537 535 242 Knockbacks 29 | . . . . . . . . . . . . . 16 13 . Impact 25 | . . . . . . . . . . . . . 15 10 . Kinetic . | . . . . . . . . . . . . . . . . Secondary 4 | . . . . . . . . . . . . . 1 3 . Self-Inflicted Damage 217 | . . . . . 91 29 63 . . 34 . . . . . Shots 5 | . . . . . 2 1 1 . . 1 . . . . . Rammed 1 | . . . . . 1 . . . . . . . . . . Targets Rammed 1 | . . . . . 1 . . . . . . . . . . Kicked . | . . . . . . . . . . . . . . . . Crushed . | . . . . . . . . . . . . . . . . Highest Temperature 275 | . . . . . 275 . 2 . . 268 . . 265 190 80 Average Temperature 84 | . . . . . 77 . 2 . . 126 . . 118 95 41 Received Heat Transfer 1407 | . . . . 42 972 . 63 . . 84 . 12 . 66 168 Siege Activations . | . . . . . . . . . . . . . . . . Robots Corrupted . | . . . . . . . . . . . . . . . . Combat Hostiles . | . . . . . . . . . . . . . . . . Parts Fried 50 | . . . . 2 1 . . . . . . . 37 10 . Impact Corruptions 78 | . . . . 2 4 . . . . . . . 52 20 . Robots Melted . | . . . . . . . . . . . . . . . . Combat Hostiles . | . . . . . . . . . . . . . . . . Parts Melted 2 | . . . . . 2 . . . . . . . . . . Heat Transferred 2073 | . . . . . 1973 100 . . . . . . . . . Parts Sabotaged . | . . . . . . . . . . . . . . . . Parts Stolen . | . . . . . . . . . . . . . . . . Parts Stripped . | . . . . . . . . . . . . . . . . Power Chain Reactions . | . . . . . . . . . . . . . . . . Alert | -11 -10 -10 -10 -9 -8 -7 -7 -7 -7 -6 -6 -6 -5 -4 -3 ------- Run | Yrd Mat Min Exi Min Mat Fac Low Low Dat Pro Fac DSF Fac Fac Res Peak Influence 604 | 5 103 5 . 172 242 388 . . . . 88 66 604 282 332 Initial 280 | . 3 5 . . 66 49 . . . . 65 61 29 280 20 Average 131 | . 37 5 . 43 107 234 . . . . 74 56 251 107 127 Maximum Alert Level 2 | . . . . . 1 1 . . . . . . 2 1 1 Low Security (%) 78 | 100 100 100 . 100 94 56 . . . . 100 100 40 79 86 Level 1 17 | . . . . . 5 43 . . . . . . 40 20 13 Level 2 3 | . . . . . . . . . . . . . 18 . . Level 3 . | . . . . . . . . . . . . . . . . Level 4 . | . . . . . . . . . . . . . . . . Level 5 . | . . . . . . . . . . . . . . . . High Security . | . . . . . . . . . . . . . . . . Max Security . | . . . . . . . . . . . . . . . . Squads Dispatched 35 | . . 1 . . 4 5 . . . 1 2 . 8 9 5 Investigation 14 | . . 1 . . 2 4 . . . . 1 . 2 4 . Extermination 9 | . . . . . . . . . . . 1 . 2 5 1 Reinforcement 11 | . . . . . 2 1 . . . . . . 4 . 4 Assault 1 | . . . . . . . . . . 1 . . . . . Garrison . | . . . . . . . . . . . . . . . . Intercept . | . . . . . . . . . . . . . . . . Searches Triggered . | . . . . . . . . . . . . . . . . Data Miner Redirects 2 | . . . . . . . . . . . . . . 2 . Construction Impeded 1 | . . . . . . . . . . . . . . . 1 Haulers Reinforced 1 | . . . . . . . . . . . . . . . 1 Active Scanning Responses . | . . . . . . . . . . . . . . . . Cargo Convoy Interrupts 1 | . . . . . . . . . . . . . 1 . . Stealth | -11 -10 -10 -10 -9 -8 -7 -7 -7 -7 -6 -6 -6 -5 -4 -3 --------- Run | Yrd Mat Min Exi Min Mat Fac Low Low Dat Pro Fac DSF Fac Fac Res Distress Signals 9 | . . . . . 2 2 . . . . . . 2 1 2 Communications Jammed . | . . . . . . . . . . . . . . . . Distress Signals . | . . . . . . . . . . . . . . . . Times Spotted 166 | . 5 1 . 3 31 11 5 3 . 28 . 3 32 13 31 Peak Tracking Total 12 | . 2 1 . 3 6 6 5 3 . 11 1 2 8 3 12 Tactical Retreats 27 | . . 1 . 2 4 2 1 . . 5 . 1 7 . 4 Traps | -11 -10 -10 -10 -9 -8 -7 -7 -7 -7 -6 -6 -6 -5 -4 -3 ------- Run | Yrd Mat Min Exi Min Mat Fac Low Low Dat Pro Fac DSF Fac Fac Res Traps Triggered 3 | . . . . . . . . . . . . 1 2 . . Indirectly . | . . . . . . . . . . . . . . . . Trap Hack Attempts . | . . . . . . . . . . . . . . . . Triggered . | . . . . . . . . . . . . . . . . Disarmed 4 | . . . . . . . . . . . . . . 4 . Reprogrammed . | . . . . . . . . . . . . . . . . Reused . | . . . . . . . . . . . . . . . . Traps Extracted . | . . . . . . . . . . . . . . . . Installed . | . . . . . . . . . . . . . . . . Triggered 7 | . . . . . . . . 2 . 1 . . 4 . . Machines | -11 -10 -10 -10 -9 -8 -7 -7 -7 -7 -6 -6 -6 -5 -4 -3 ---------- Run | Yrd Mat Min Exi Min Mat Fac Low Low Dat Pro Fac DSF Fac Fac Res Machines Disabled 12 | . . . . 1 1 3 2 . . . . . 4 1 . Max in Single Turn 3 | . . . . 1 1 3 2 . . . . . . 1 . Garrison Access 5 | . . . . . . . . . . . . . 1 3 1 Machines Repaired . | . . . . . . . . . . . . . . . . Machines Dismantled . | . . . . . . . . . . . . . . . . Machines Sabotaged . | . . . . . . . . . . . . . . . . Overloaded Fab Kills . | . . . . . . . . . . . . . . . . Hacking | -11 -10 -10 -10 -9 -8 -7 -7 -7 -7 -6 -6 -6 -5 -4 -3 --------- Run | Yrd Mat Min Exi Min Mat Fac Low Low Dat Pro Fac DSF Fac Fac Res Machines Accessed 58 | . 2 1 1 1 5 7 1 1 4 . 5 . 9 14 7 Terminals 27 | . 2 . . . 4 4 . . . . 2 . 6 5 4 Fabricators 6 | . . . . . . 1 . . . . . . . 4 1 Repair Stations 3 | . . . . . . . . . . . 2 . . 1 . Recycling Units 7 | . . . . . 1 1 . . . . 1 . 2 1 1 Scanalyzers . | . . . . . . . . . . . . . . . . Garrison Access 6 | . . . . . . 1 . . . . . . 1 3 1 Total Hacks 170 | . 2 1 1 1 13 18 1 1 29 . 12 . 26 45 20 Successful 101 | . 2 1 1 1 3 5 1 1 29 . 4 . 9 32 12 Failed 68 | . . . . . 10 13 . . . . 8 . 16 13 8 Catastrophic 16 | . . . . . 3 8 . . . . 3 . 2 . . Database Lockouts 1 | . . . . . . . . . . . . . 1 . . Manual 51 | . 1 . 1 . 6 4 . . . . 6 . 9 14 10 Terminals 89 | . 2 . . . 12 11 . . . . 7 . 20 23 14 Fabricators 16 | . . . . . . 2 . . . . . . . 11 3 Repair Stations 4 | . . . . . . . . . . . 3 . . 1 . Recycling Units 13 | . . . . . 1 2 . . . . 2 . 4 3 1 Scanalyzers . | . . . . . . . . . . . . . . . . Garrison Access 14 | . . . . . . 3 . . . . . . 2 7 2 Terminal Hacks 68 | . 2 1 1 1 1 3 1 1 29 . 2 . 7 16 3 Record 14 | . . . . . . . . . 11 . . . 3 . . Part Schematic 15 | . . . . . . . . . 11 . . . 1 3 . Robot Schematic 4 | . . . . . . . . . 4 . . . . . . Robot Analysis 1 | . . . . . . 1 . . . . . . . . . Prototype ID Bank 3 | . . . . . . . . . 3 . . . . . . Open Door 4 | . . 1 . 1 . . 1 1 . . . . . . . Open DSF 2 | . . . . . . . . . . . 1 . 1 . . Level Access Points 1 | . . . . . . . . . . . . . . 1 . Branch Access Points 2 | . 1 . . . . . . . . . . . . . 1 Machine Index 2 | . . . . . . . . . . . . . . 1 1 Terminal Index 2 | . . . . . . 1 . . . . . . . 1 . Fabricator Index 1 | . . . . . . . . . . . . . . 1 . Garrison Index 1 | . . . . . . . . . . . . . . 1 . Unreport Threat 6 | . 1 . . . 1 . . . . . . . . 4 . Locate Traps 1 | . . . . . . 1 . . . . . . . . . Disarm Traps 1 | . . . . . . . . . . . . . . 1 . Recall Investigation 1 | . . . . . . . . . . . 1 . . . . Recall Extermination 2 | . . . . . . . . . . . . . . 2 . Hauler Manifests 1 | . . . . . . . . . . . . . 1 . . Registered Components 3 | . . . . . . . . . . . . . 1 1 1 Derelict Proto ID Bank 1 | . . . 1 . . . . . . . . . . . . Fabricator Hacks 14 | . . . . . . 1 . . . . . . . 11 2 Network Status 1 | . . . . . . . . . . . . . . 1 . Load Schematic 6 | . . . . . . . . . . . . . . 5 1 Build 7 | . . . . . . 1 . . . . . . . 5 1 Repair Station Hacks 3 | . . . . . . . . . . . 2 . . 1 . Refit 3 | . . . . . . . . . . . 2 . . 1 . Recycling Unit Hacks 5 | . . . . . 1 1 . . . . . . 1 1 1 Retrieve Components 5 | . . . . . 1 1 . . . . . . 1 1 1 Scanalyzer . | . . . . . . . . . . . . . . . . Garrison Access Hacks 5 | . . . . . . . . . . . . . 1 3 1 Seal Access 5 | . . . . . . . . . . . . . 1 3 1 Unauthorized Hacks 6 | . . . . . 1 . . . . . . . . . 5 Terminals 5 | . . . . . 1 . . . . . . . . . 4 Track 1 | . . . . . 1 . . . . . . . . . . Botnet 4 | . . . . . . . . . . . . . . . 4 Fabricators 1 | . . . . . . . . . . . . . . . 1 Haulers 1 | . . . . . . . . . . . . . . . 1 Repair Stations . | . . . . . . . . . . . . . . . . Recycling Units . | . . . . . . . . . . . . . . . . Scanalyzers . | . . . . . . . . . . . . . . . . Garrison Access . | . . . . . . . . . . . . . . . . Data Cores Recovered 3 | . . . . . . . . . . . . . 1 1 1 Used 2 | . . . . . . . . . . . . . 1 1 . Hacking Detections 33 | . . . . . 4 7 . . . . 2 . 7 9 4 Full Trace Events 11 | . . . . . 1 4 . . . . 1 . 1 4 . Feedback Events 2 | . . . . . . . . . . . 1 . 1 . . Corruption 2 | . . . . . . . . . . . 1 . 1 . . Feedback Blocked . | . . . . . . . . . . . . . . . . Robot Schematics Acquired 4 | . . . . . . . . . 4 . . . . . . Robots Built . | . . . . . . . . . . . . . . . . Authchips . | . . . . . . . . . . . . . . . . Time . | . . . . . . . . . . . . . . . . Total Robot Build Rating . | . . . . . . . . . . . . . . . . Part Schematics Acquired 15 | . . . . . . . . . 11 . . . 1 3 . Parts Built 8 | . . . . . . 1 . . . . . . . 6 1 Authchips 2 | . . . . . . . . . . . . . . 1 1 Time 599 | . . . . . . 47 . . . . . . . 499 53 Total Part Build Rating 42 | . . . . . . 5 . . . . . . . 31 6 Parts Repaired . | . . . . . . . . . . . . . . . . Time . | . . . . . . . . . . . . . . . . Parts Recycled . | . . . . . . . . . . . . . . . . Recycled Matter . | . . . . . . . . . . . . . . . . Retrieved Matter . | . . . . . . . . . . . . . . . . Retrieved Components 21 | . . . . . 3 2 . . . . . . 10 4 2 Parts Scanalyzed . | . . . . . . . . . . . . . . . . Part Schematics Acquired . | . . . . . . . . . . . . . . . . Parts Damaged . | . . . . . . . . . . . . . . . . Bothacking | -11 -10 -10 -10 -9 -8 -7 -7 -7 -7 -6 -6 -6 -5 -4 -3 ------------ Run | Yrd Mat Min Exi Min Mat Fac Low Low Dat Pro Fac DSF Fac Fac Res Used RIF Installer . | . . . . . . . . . . . . . . . . Robots Hacked . | . . . . . . . . . . . . . . . . Non-combat . | . . . . . . . . . . . . . . . . Combat . | . . . . . . . . . . . . . . . . Robot Hacks Applied . | . . . . . . . . . . . . . . . . Relay Couplers Released . | . . . . . . . . . . . . . . . . Fabnet Peak Effective % . | . . . . . . . . . . . . . . . . Robots Rewired . | . . . . . . . . . . . . . . . . Allies Hacked . | . . . . . . . . . . . . . . . . Hacks Repelled . | . . . . . . . . . . . . . . . . Allies | -11 -10 -10 -10 -9 -8 -7 -7 -7 -7 -6 -6 -6 -5 -4 -3 -------- Run | Yrd Mat Min Exi Min Mat Fac Low Low Dat Pro Fac DSF Fac Fac Res Total Allies 4 | . . . . 2 . . . . . 1 . . 1 . . Largest Group 2 | . . . . 2 . . . . . 1 . . 1 . . Highest-Rated Group 99 | . . . . 38 . . . . . 96 . . 99 . . Highest-Rated Ally 99 | . . . . 31 . . . . . 96 . . 99 . . Total Orders 1 | . . . . . 1 . . . . . . . . . . EXPLORE 1 | . . . . . 1 . . . . . . . . . . Ally Attacks 45 | . . . . 11 11 . . . . 15 . . 8 . . Total Damage 1734 | . . . . 210 43 . . . . 529 . . 952 . . Kills 21 | . . . . 5 1 . . . . 5 . . 10 . . Allies Corrupted 1 | . . . . . . . . . . . . . 1 . . Allies Melted . | . . . . . . . . . . . . . . . . Intel | -11 -10 -10 -10 -9 -8 -7 -7 -7 -7 -6 -6 -6 -5 -4 -3 ------- Run | Yrd Mat Min Exi Min Mat Fac Low Low Dat Pro Fac DSF Fac Fac Res Robot Analysis Total 1 | . . . . . . 1 . . . . . . . . . Derelict Logs Recovered 4 | . . . . 1 . . 1 . . 2 . . . . . Drone Launches 3 | . . . . . 3 . . . . . . . . . . Drone Recoveries 2 | . . . . . 2 . . . . . . . . . . Exploration | -11 -10 -10 -10 -9 -8 -7 -7 -7 -7 -6 -6 -6 -5 -4 -3 ------------- Run | Yrd Mat Min Exi Min Mat Fac Low Low Dat Pro Fac DSF Fac Fac Res Turns Passed 11340 | 126 186 395 374 696 1667 489 620 639 102 486 389 71 1748 1911 1441 Spaces Moved 9247 | 73 81 237 245 370 513 598 794 549 87 617 321 128 2035 1655 944 Core 820 | 15 . . . . . 4 . . . 382 319 98 . . 2 Treads 1319 | 58 81 237 245 370 328 . . . . . . . . . . Legs 2 | . . . . . . . . . . . 2 . . . . Wheels 139 | . . . . . 139 . . . . . . . . . . Hover 2427 | . . . . . 46 594 794 549 87 235 . . . . 122 Flight 4540 | . . . . . . . . . . . . 30 2035 1655 820 Fastest Speed 20 | 50 160 152 152 152 52 48 52 56 56 50 50 37 20 20 20 Average Speed 59 | 140 160 154 152 152 141 53 54 87 115 55 50 46 35 22 30 Slowest Speed 400 | 160 160 160 152 152 240 400 60 116 116 150 250 50 120 27 150 Overloaded Moves . | . . . . . . . . . . . . . . . . Propulsion Burnouts . | . . . . . . . . . . . . . . . . Robots Hopped 11 | . . . . . . . . 1 . . . . 4 5 1 Cave-ins Triggered . | . . . . . . . . . . . . . . . . Exploration Rate (%) 48 | 5 25 55 65 54 46 20 81 74 77 75 6 93 51 31 24 Regions Visited 15 Branch Regions 7 Pre-discovered Areas 2 | . . . . 1 . . . . 1 . . . . . . Known Exits Taken 4 | . 1 . . . . . . . . . 1 . 1 1 . Unknown Exits Taken 10 | 1 . 1 1 1 1 1 1 1 1 1 . . . . . Scrap Searched 10 | . . 2 . 1 . . 4 2 . 1 . . . . . Spaces Dug 122 | . . . . . 19 18 1 1 . . 7 . 22 17 37 Terrain Destroyed 258 | . . . . . 42 37 18 1 . 21 7 . 39 38 55 Melee 71 | . . . . . 7 6 1 1 . . 7 . 22 17 10 Projectile . | . . . . . . . . . . . . . . . . AOE 187 | . . . . . 35 31 17 . . 21 . . 17 21 45 Terrain Rammed . | . . . . . . . . . . . . . . . . Walls Destroyed . | . . . . . . . . . . . . . . . . Machines Disabled . | . . . . . . . . . . . . . . . . Actions | -11 -10 -10 -10 -9 -8 -7 -7 -7 -7 -6 -6 -6 -5 -4 -3 --------- Run | Yrd Mat Min Exi Min Mat Fac Low Low Dat Pro Fac DSF Fac Fac Res Total 14310 | 88 109 263 247 476 1297 736 974 692 88 744 526 137 2917 3072 1944 Wait 4388 | 1 12 21 . 88 636 93 149 114 . 104 180 . 771 1332 887 Move 9210 | 72 80 236 244 369 512 597 793 546 86 616 320 127 2026 1644 942 Hop 11 | . . . . . . . . 1 . . . . 4 5 1 Pick Up 42 | 6 2 4 2 . 11 2 4 1 . . 1 1 3 1 4 Fast Attach 92 | 6 1 . . 3 12 7 2 6 . 1 5 5 13 11 20 Attach 49 | . . . . 1 13 6 4 3 1 5 2 . 6 3 5 Detach 30 | . . . . 1 4 5 1 2 1 4 3 . 5 2 2 Swap 18 | . . 1 . . 12 2 2 . . 1 . . . . . Drop 54 | . . . 1 . 13 3 11 7 . . 2 4 5 4 4 Fire 115 | 3 14 1 . 12 62 8 6 . . 3 . . 3 1 2 Melee 294 | . . . . 2 21 13 2 12 . 10 13 . 75 69 77 Ram 1 | . . . . . 1 . . . . . . . . . . Kick . | . . . . . . . . . . . . . . . . Crush . | . . . . . . . . . . . . . . . . Escape Stasis 6 | . . . . . . . . . . . . . 6 . . Rewire . | . . . . . . . . . . . . . . . . Trap . | . . . . . . . . . . . . . . . . Miscellaneous . | . . . . . . . . . . . . . . . . Route ------- -11/Scrapyard -10/Materials -10/Mines -10/Exiles -9/Mines -8/Materials -7/Factory -7/Lower Caves -7/Lower Caves (discovered 2 exits: *Fac / *Dat) -7/Data Miner -6/Proximity Caves -6/Factory (discovered 3 exits: Fac / Low / DSF) -6/DSF -5/Factory (discovered 3 exits: *Fac x2 / *Upp) -4/Factory (discovered 4 exits: *Res x4) -3/Research (discovered 2 exits: Qua x2) History --------- Turn | Location | Event 2 | -11/Scrapyard | Discovered new exit (range 16) 127 | -11/Scrapyard | Entered Materials 139 | -10/Materials | Identified exit to Mines 308 | -10/Materials | Build established: Mutant 313 | -10/Materials | Entered Mines 314 | -10/Mines | Assembled infested the area 423 | -10/Mines | Met a Derelict shopkeep closing up shop 702 | -10/Mines | Deemed a non-threat by the Exiles lab entrance 702 | -10/Mines | Discovered new exit (range 5) 708 | -10/Mines | Entered Exiles 745 | -10/Exiles | Met 8R-AWN 772 | -10/Exiles | Met EX-HEX 815 | -10/Exiles | Met EX-BIN 832 | -10/Exiles | Aligned with FarCom system 833 | -10/Exiles | Given EX-Vault access code 868 | -10/Exiles | Opened EX-Vault 879 | -10/Exiles | Found Gui. Plasma Cannon 912 | -10/Exiles | Warned to stay clear of 0b10 Research branches 953 | -10/Exiles | Met EX-DEC 1068 | -10/Exiles | Discovered new exit (range 10) 1082 | -10/Exiles | Left Exiles lab with Gui. Plasma Cannon 1082 | -10/Exiles | Entered Mines 1097 | -9/Mines | Found the Drone Emporium 1099 | -9/Mines | Learned location of Storage (-9) 1104 | -9/Mines | Found Prototype Device 1104 | -9/Mines | Identified Thief Drone Bay 1169 | -9/Mines | A weapon hastily lodged in a ceiling crevice suddenly fell to the ground 1694 | -9/Mines | Core integrity fell below 50% 1768 | -9/Mines | Discovered new exit (range 8) 1778 | -9/Mines | Entered Materials 1778 | -8/Materials | Evolved 4 slots: Propulsion x1, Utility x3 2936 | -8/Materials | Lost 3 parts (1p1u1w) 3357 | -8/Materials | Core integrity fell below 50% 3396 | -8/Materials | Lost 7 parts (1p3n2u1w) 3434 | -8/Materials | Discovered new exit (range 18) 3445 | -8/Materials | Entered Factory 3445 | -7/Factory | Evolved 2 slots: Propulsion x1, Utility x1 3712 | -7/Factory | Lost 3 parts (2n1w) 3821 | -7/Factory | Fabricated Enh. Optical Array? 3878 | -7/Factory | Discovered new exit (range 9) 3934 | -7/Factory | Entered Lower Caves 3943 | -7/Lower Caves | Learned Factory trap positions 4268 | -7/Lower Caves | Build established: Gladiator 4397 | -7/Lower Caves | Lost 6 parts (1p2n1u2w) 4506 | -7/Lower Caves | Encountered a Warlord checkpoint 4552 | -7/Lower Caves | Discovered new exit (range 5) 4554 | -7/Lower Caves | Entered another Lower Caves area 4605 | -7/Lower Caves | Discovered new exit (range 9) 4656 | -7/Lower Caves | Build established: Mutant 4708 | -7/Lower Caves | Found Prototype Device 4708 | -7/Lower Caves | Identified Heart of Steel 5001 | -7/Lower Caves | Build established: Gladiator 5150 | -7/Lower Caves | Discovered new exit (range 7) 5193 | -7/Lower Caves | Entered Data Miner 5193 | -7/Data Miner | Discovered new exit (range 7) 5209 | -7/Data Miner | Met Data Miner 5239 | -7/Data Miner | Learned location of Section 7 (-2) 5239 | -7/Data Miner | Acquired the access code to Warlord's prototype stash 5257 | -7/Data Miner | Received God Mode back door access code from Data Miner 5295 | -7/Data Miner | Entered Proximity Caves 5301 | -6/Proximity Caves | Escorted by Enhanced Grunt 5311 | -6/Proximity Caves | Attracted the attention of an 0b10 checkpoint 5440 | -6/Proximity Caves | Learned location of 1 exit from Factory 5505 | -6/Proximity Caves | Attracted the attention of an 0b10 outpost 5521 | -6/Proximity Caves | Learned location of 1 exit from Factory 5542 | -6/Proximity Caves | Core integrity fell below 50% 5600 | -6/Proximity Caves | Lost 6 parts (1p1n2u2w) 5774 | -6/Proximity Caves | Spotted B-75 Beast 5775 | -6/Proximity Caves | Discovered new exit (range 13) 5779 | -6/Proximity Caves | Core integrity fell below 20% 5781 | -6/Proximity Caves | Entered Factory 5781 | -6/Factory | Evolved 2 slots: Utility x2 5782 | -6/Factory | Identified exit to Factory 5782 | -6/Factory | Identified exit to Lower Caves 5783 | -6/Factory | Loaded intel: 100 trap records 5797 | -6/Factory | Build established: Mutant 6169 | -6/Factory | Identified exit to DSF 6170 | -6/Factory | Entered DSF 6191 | -6/DSF | Additional patrols routed to DSF 6203 | -6/DSF | Discovered exit to Factory (range 22) 6241 | -6/DSF | Entered Factory 6241 | -5/Factory | Evolved 2 slots: Utility x2 6523 | -5/Factory | Build established: Hacker-Mutant 6701 | -5/Factory | Discovered new exit (range 4) 6783 | -5/Factory | Heart of Steel transformed into Warbot 6795 | -5/Factory | Discovered new exit (range 16) 6832 | -5/Factory | Identified exit to Upper Caves 7145 | -5/Factory | Cargo convoy interrupted 7236 | -5/Factory | Central database locked down 7686 | -5/Factory | System corruption reached 10% 7745 | -5/Factory | Discovered new exit (range 21) 7970 | -5/Factory | Build established: Hacker-Sprinter 7989 | -5/Factory | Identified exit to Factory 7989 | -5/Factory | Entered another Factory area 7989 | -4/Factory | Evolved 2 slots: Utility x2 7995 | -4/Factory | Found Prototype Launcher 7995 | -4/Factory | Identified Hellfire Missile Launcher 8100 | -4/Factory | Fabricated Imp. Hacking Suite (x1) 8254 | -4/Factory | Fabricated Cld. Cesium-ion Thruster? 8726 | -4/Factory | Fabricated Adv. System Shield (x1) 9068 | -4/Factory | Discovered new exit (range 13) 9253 | -4/Factory | Incoming investigation squad redirected 9274 | -4/Factory | Fabricated Power Sword? 9497 | -4/Factory | Incoming investigation squad redirected 9620 | -4/Factory | Fabricated Cld. Cesium-ion Thruster? 9650 | -4/Factory | System corruption reached 10% 9819 | -4/Factory | Discovered new exit (range 12) 9855 | -4/Factory | Discovered new exit (range 21) 9889 | -4/Factory | Identified exit to Research 9900 | -4/Factory | Entered Research 9900 | -3/Research | Evolved 2 slots: Power x1, Utility x1 9904 | -3/Research | Identified exit to Quarantine 9947 | -3/Research | Found Enh. Force Lance 9958 | -3/Research | Spotted B-86 Titan 10000 | -3/Research | Found Heavy Servo Lattice 10035 | -3/Research | Spotted B-86 Titan 10060 | -3/Research | Spotted B-90 Cyclops 10096 | -3/Research | Lost 4 parts (1p1n1u1w) 10156 | -3/Research | Fabricated Adv. Hacking Suite? 10259 | -3/Research | Build established: Wizard-Sprinter 10383 | -3/Research | Lost 5 parts (1n3u1w) 10838 | -3/Research | Core integrity fell below 50% 10894 | -3/Research | Lost 12 parts (1p3n8u) 11122 | -3/Research | Build established: Hacker-Mutant 11261 | -3/Research | Core integrity fell below 20% 11341 | -3/Research | Destroyed by G-67 Veteran with Plasma Rifle Last Messages --------------- 11282_ Slug penetrates Wall. 11283_ K-01 Serf collects debris. 11285_ Penetrated by Slug. 11287_ R-10 Processor collects Railgun. 11289_ Acquired Impulse Thruster. 11297_ The unstable cave ceiling collapses. 11297_ Acquired Impulse Thruster. 11299_ System corrupted: Heat flow error (+106). 11301_ Acquired Mic. Antimatter Reactor. 11303_ Dropped Imp. Antigrav System. 11304_ Acquired Nuclear Pulse Array. 11310_ Penetrated by Slug. 11311_ U-05 Engineer lays Concrete. 11312_ U-05 Engineer builds a Door. 11315_ U-05 Engineer lays Concrete. 11315_ K-01 Serf collects debris. 11317_ U-05 Engineer builds a Wall. 11317_ U-05 Engineer lays Concrete. 11330_ Acquired Adv. System Shield. 11332_ Acquired Particle Reactor. Map ----- +----------------------------------------------------+ | #"" = # [!* ##?????# # #? | | #"" ####+##### *% = #??????# # #? | | # ! #? ?# #??????# ==! # #? | | # # ### ## +####??????# [[%%!# #? | | ########## #?# #????????#####+### ## | | #???? ##?# * #?### # # #????????## %%% | | #???##???# #?######## #????????## | | #????????# #????????# #?????????# | | #????????########????????# #?????????# #####+### | | ?????????????????????????# #?????????# ## | | ?????????????????######### #?????????# ## | | ?????????????????# ## ##????????# ##""" | | ?????????????????#]! #Y ##+####### ##""" | | ?????????????????#] + ##""" | | ?????????????????# # ##+##+#### ##""" ! | | ?????????????????# #####????????# ##""" | | ?????????????????# =#????????????# ## | | ?????????????????###+####????????????# ## | | ???????????????????# #???????????????# ######### | | ???????????????????# #######?????????# | | ???????????????????# #?????????# | | ???????????????????# #??######?# | | ???????????????????# ### ! #?# #####+### | | ???????????????????# ### # | | ???????????????????+ g g + | | ???????????????????# @ ###+### """"" | | ???????????????????########+## #?????# ""T"" | | ??????????????????????# ### ###?????# = / | | ??????????????????????# [ ### #??????## ]! | | ??????????????????????# Yg #??????#" | | ??????????????????????# ###+####?!?## | | ??????????????????????# # [ #????########" | | ??????????????????????# = # #???????????## | | ??????????????????????########] #????????????# | | ?????????????????????????????# #????????????# | | ?????????????????????????????# #????????????# | | ?????????????????????????????# ] #????????????# | | ?????????????????????????????########????????????# | | ?????????????????????????????????????????????????# | | ?????????????????????????????????????????????????# | | ?????????????????????????????????????????????????# | | ?????????????????????????????????????????????????# | | ?????????????????????????????????????????????????? | | ?????????????????????????????????????????????????? | | ?????????????????????????????????????????????????? | | ?????????????????????????????????????????????????? | | ?????????????????????????????????????????????????? | | ?????????????????????????????????????????????????? | | ?????????????????????????????????????????????????? | | ?????????????????????????????????????????????????? | +----------------------------------------------------+ Best States ------------- Heat Dissipation 46 Energy Generation 37 Energy Capacity 390 Matter Stores 300 Matter Capacity 300 Sight Range 22 Robot Scan Range 15 Terrain Scan Density 10 Armor Coverage 150 Resistance: KI 25 Resistance: TH 10 Core Shielding 20 Evasion (%) 75 Melee Accuracy 10 Launcher Accuracy 20 Recoil Reduction 3 Salvage Targeting 1 Offensive Hacking 58 Defensive Hacking 48 Authchip Count 2 Item Schematics ----------------- Lgt. Regenerative Plating | -7/Data Miner | Free Combat Drone Bay | -7/Data Miner | Free Exp. Targeting Computer | -7/Data Miner | Free Force Rifle | -7/Data Miner | Free Cmb. Gravmag System | -7/Data Miner | Free Adv. System Shield | -7/Data Miner | Free Carbide Saw | -7/Data Miner | Free Adv. Trap Extractor | -7/Data Miner | Free Imp. Gyrokinetic Inverter | -7/Data Miner | Free Adv. Plasma Cannon | -7/Data Miner | Free Cld. Cesium-ion Thruster | -7/Data Miner | Free Imp. Hacking Suite | -5/Factory | Hacked Katana | -4/Factory | Hacked Power Sword | -4/Factory | Hacked Adv. Hacking Suite | -4/Factory | Hacked Robot Schematics ------------------ G-47 Trooper | -7/Data Miner | Free R-10 Processor | -7/Data Miner | Free M-22 Extractor | -7/Data Miner | Free W-25 Informer | -7/Data Miner | Free Fabricated ------------ Enh. Optical Array | x1 | -7/Factory | Preloaded Imp. Hacking Suite | x1 | -4/Factory | Authchip Cld. Cesium-ion Thruster | x1 | -4/Factory Adv. System Shield | x1 | -4/Factory Power Sword | x2 | -4/Factory Cld. Cesium-ion Thruster | x1 | -4/Factory Adv. Hacking Suite | x1 | -3/Research | Authchip Alien Tech Used ----------------- None Achievements -------------- None Challenges ------------ None Game ------ Seed IntegrityDirtyHammer Manual? 0 Play Time 02:15:45 Cumulative 110.3 hours Start 2024.04.08 @ 04:07:39 End 2024.04.08 @ 21:57:18 Sessions 5 Manual Loads 0 Difficulty Rogue Special Mode None Game No. 58 Rogue 20 Adventurer 16 Explorer 22 Win Type - Total 19 Types 14/4/0/0/0/0/0/1/0 Lore% 67 Gallery% 73 Achievement% 68 Wizard Run 0 Options --------- Layout 0 ASCII 0 Keyboard 0 Movement Mouse Keybinds 0 Fullscreen 1 Font 24/Terminus Map View 76x50 Zoom Use 0% Tactical HUD 1 Map Filters NONE Filters NONE Steam 1 RUN: 6c031560-ad7a-4e79-a4b1-0a1a5d488912